fUSD/lending_fUSD_20260106
["ID","MTS","AMOUNT","RATE_DAILY","PERIOD"]
[400546322,1767709839588,-5608.35940608,0.000422,2]
[400546323,1767709839598,-500.0,0.0004222,15]
[400546324,1767709839607,-215.92662114,0.00042376,14]
[400546325,1767709839617,-584.76218053,0.00042402,30]
[400546326,1767709839626,-9348.63601462,0.000425,7]
[400546327,1767709839636,-151.0,0.000425,120]
[400546328,1767709839645,-248.73722322,0.00042601,2]
[400546329,1767709839654,-257.72221862,0.0004274,10]
[400546330,1767709839663,-507.465941,0.0004274,10]
[400546331,1767709839672,-157.59,0.000428,14]
[400546332,1767709839683,-17980.81445304,0.000429,7]
[400546333,1767709839692,-197.69,0.000429,14]
[400546334,1767709839702,-365.64970051,0.00042933,30]
[400546335,1767709839712,-160.49299291,0.00042973,10]
[400546336,1767709839722,-2000.0,0.00042975,3]
[400546337,1767709839732,-2000.0,0.00042975,3]
[400546338,1767709839742,-2000.0,0.00042975,3]
[400546339,1767709839752,-150.0,0.00043,2]
[400546340,1767709839762,-34946.61874302,0.00043,15]
[400546341,1767709839772,-150033.1279286,0.00043,2]
[400546342,1767709839781,-306.54766363,0.00043181,2]
[400546343,1767709839791,-710.0,0.000432,24]
[400546344,1767709839800,-172.60614,0.00043235,2]
[400546345,1767709839810,-225.85193,0.0004325,2]
[400546346,1767709839820,-225.85193,0.0004325,2]
[400546347,1767709839829,-225.85193,0.0004325,2]
[400546349,1767709839842,-225.85193,0.0004325,2]
[400546350,1767709839852,-225.85193,0.0004325,2]
[400546352,1767709839861,-225.85193,0.0004325,2]
[400546353,1767709839871,-225.85193,0.0004325,2]
[400546354,1767709839880,-225.85193,0.0004325,2]
[400546355,1767709839890,-225.85193,0.0004325,2]
[400546356,1767709839901,-225.85193,0.0004325,2]
[400546357,1767709839911,-225.85193,0.0004325,2]
[400546358,1767709839922,-225.85193,0.0004325,2]
[400546359,1767709839932,-225.85193,0.0004325,2]
[400546360,1767709839942,-225.85193,0.0004325,2]
[400546361,1767709839952,-225.85193,0.0004325,2]
[400546362,1767709839961,-225.85193,0.0004325,2]
[400546363,1767709839971,-225.85193,0.0004325,2]
[400546364,1767709839981,-225.85193,0.0004325,2]
[400546365,1767709839990,-225.85193,0.0004325,2]
[400546366,1767709840000,-225.85193,0.0004325,2]
[400546367,1767709840010,-220.541688,0.0004325,28]
[400546368,1767709840020,-220.541688,0.0004325,28]
[400546369,1767709840029,-220.541688,0.0004325,28]
[400546370,1767709840039,-220.541688,0.0004325,28]
[400546371,1767709840048,-220.541688,0.0004325,28]
[400546372,1767709840058,-220.541688,0.0004325,28]
[400546373,1767709840067,-220.541688,0.0004325,28]
[400546374,1767709840077,-220.541688,0.0004325,28]
[400546375,1767709840087,-220.541688,0.0004325,28]
[400546376,1767709840096,-220.541688,0.0004325,28]
[400546377,1767709840106,-220.541688,0.0004325,28]
[400546378,1767709840116,-220.541688,0.0004325,28]
[400546379,1767709840126,-220.541688,0.0004325,28]
[400546380,1767709840136,-220.541688,0.0004325,28]
[400546381,1767709840145,-220.541688,0.0004325,28]
[400546382,1767709840155,-220.541688,0.0004325,28]
[400546383,1767709840166,-220.541688,0.0004325,28]
[400546384,1767709840176,-220.541688,0.0004325,28]
[400546385,1767709840186,-220.541688,0.0004325,28]
[400546386,1767709840196,-220.541684,0.0004325,28]
[400546387,1767709840206,-151.0,0.0004325,7]
[400546388,1767709840215,-151.0,0.0004325,7]
[400546389,1767709840224,-508.49460678,0.0004325,4]
[400546390,1767709840234,-646.67676518,0.0004325,2]
[400546391,1767709840247,-1318.65208132,0.0004325,2]
[400546392,1767709840257,-7512.69404036,0.0004325,2]
[400546393,1767709840267,-45954.11261329,0.0004325,2]
[400546394,1767709840276,-19425.33186797,0.0004325,4]
[400546395,1767709840287,-203.68095415,0.00043276,2]
[400546396,1767709840296,-248.73722322,0.00043276,2]
[400546397,1767709840305,-151.0,0.000433,120]
[400546398,1767709840314,-6389.79917982,0.00043375,30]
[400546399,1767709840323,-488423.18154292,0.00043376,7]
[400546400,1767709840340,-1221.26746359,0.00043376,7]
[400546401,1767709840356,-2615.92995068,0.00043376,7]
[400546402,1767709840367,-1556.1045,0.00043376,7]
[400546403,1767709840378,-24744.06703281,0.00043376,7]
[400546404,1767709840389,-490.605,0.00043376,7]
[400546405,1767709840400,-23013.791222,0.00043376,7]
[400546406,1767709840468,-1694.18375512,0.00043376,7]
[400546407,1767709840479,-1126.25295835,0.00043376,7]
[400546408,1767709840493,-345.77124415,0.00043376,7]
[400546409,1767709840509,-78803.05126884,0.00043376,7]
[400546410,1767709840521,-4362.66079118,0.00043376,7]
[400546416,1767709843735,-151.0,0.00017192,2]
[400546417,1767709843745,-1326.17184851,0.000419,120]
[400546418,1767709843754,-1289397.50404956,0.00043376,7]
[400546419,1767709843769,-2479570.63083011,0.00043376,7]
[400546420,1767709843780,-744.85,0.00043376,7]
[400546421,1767709843792,-1749.29182994,0.00043376,7]
[400546422,1767709844768,-278.49885641,0.0001839,2]
[400546423,1767709844780,-1662.4837139,0.0001839,2]
[400546428,1767709844924,-78.08670279,0.0001839,2]
[400546435,1767709845805,-2076.4863294,0.0001839,2]
[400546436,1767709845815,-1447.64908212,0.00043376,7]
[400546437,1767709845828,-9986.01147218,0.00043376,7]
[400546438,1767709845839,-11521.495084,0.00043376,7]
[400546440,1767709845931,-362.85890571,0.000427,30]
[400546442,1767709845940,-689.57300137,0.00043376,7]
[400546443,1767709845989,-10098.0,0.00043376,7]
[400546450,1767709846111,-2970.0,0.00043376,7]
[400546451,1767709846123,-517.10995629,0.00043376,7]
[400546459,1767709855722,229.55635335,0.00032876,120]
[400546460,1767709866196,248.28973648,0.00032876,120]
[400546461,1767709867366,195.0,0.0002277,120]
[400546462,1767709867459,195.0,0.00025766,120]
[400546463,1767709883319,614.83164998,0.00032876,120]
[400546464,1767709884522,574.03363402,0.00032876,120]
[400546465,1767709888452,559.40071676,0.00032876,120]
[400546466,1767709890454,612.66571669,0.00032876,120]
[400546467,1767709893683,562.9865012,0.00032876,120]
[400546468,1767709894246,631.87098055,0.00032876,120]
[400546469,1767709901085,632.05378963,0.00032876,120]
[400546470,1767709901165,566.10994721,0.00032876,120]
[400546471,1767709903618,569.70946826,0.00032876,120]
[400546472,1767709903982,236.15,0.00032876,120]
[400546473,1767709909647,570.92,0.00032876,120]
[400546474,1767709909887,570.92,0.00032876,120]
[400546475,1767709910135,570.92,0.00032876,120]
[400546476,1767709910372,570.92,0.00032876,120]
[400546477,1767709910618,570.92,0.00032876,120]
[400546478,1767709910895,570.92,0.00032876,120]
[400546479,1767709911065,589.65206308,0.00032876,120]
[400546480,1767709911160,570.92,0.00032876,120]
[400546481,1767709911386,570.92,0.00032876,120]
[400546482,1767709911634,570.92,0.00032876,120]
[400546483,1767709911878,570.92,0.00032876,120]
[400546484,1767709912125,570.92,0.00032876,120]
[400546485,1767709912377,570.92,0.00032876,120]
[400546486,1767709912612,570.92,0.00032876,120]
[400546487,1767709912902,570.92,0.00032876,120]
[400546488,1767709913150,640.93145119,0.00032876,120]
[400546489,1767709913245,570.92,0.00032876,120]
[400546490,1767709913423,570.92,0.00032876,120]
[400546491,1767709913662,570.92,0.00032876,120]
[400546492,1767709913898,570.92,0.00032876,120]
[400546493,1767709914165,570.92,0.00032876,120]
[400546494,1767709914408,570.92,0.00032876,120]
[400546495,1767709914651,570.92,0.00032876,120]
[400546496,1767709914994,570.92,0.00032876,120]
[400546497,1767709915157,570.92,0.00032876,120]
[400546498,1767709915285,568.4359728,0.00032876,120]
[400546499,1767709915659,571.09,0.00032876,120]
[400546500,1767709916419,-150.0,0.000207,2]
[400546502,1767709917145,571.79254544,0.00032876,120]
[400546503,1767709926734,595.04644331,0.00032876,120]
[400546504,1767709929075,628.27404521,0.00032876,120]
[400546505,1767709932439,614.33849328,0.00032876,120]
[400546506,1767709934932,572.84118049,0.00032876,120]
[400546507,1767709936824,722.9,0.00032876,120]
[400546508,1767709936908,572.36129668,0.00032876,120]
[400546509,1767709937094,722.9,0.00032876,120]
[400546510,1767709937312,722.9,0.00032876,120]
[400546511,1767709937498,583.92098087,0.00032876,120]
[400546512,1767709937597,722.9,0.00032876,120]
[400546513,1767709937831,722.9,0.00032876,120]
[400546514,1767709938075,722.9,0.00032876,120]
[400546515,1767709938350,722.9,0.00032876,120]
[400546516,1767709938616,722.9,0.00032876,120]
[400546517,1767709938865,722.9,0.00032876,120]
[400546518,1767709939126,722.9,0.00032876,120]
[400546519,1767709939362,722.9,0.00032876,120]
[400546520,1767709939521,580.50177952,0.00032876,120]
[400546521,1767709939606,500.0,0.00032876,120]
[400546522,1767709939695,722.9,0.00032876,120]
[400546523,1767709939787,195.57865186,0.00032876,120]
[400546524,1767709939876,722.9,0.00032876,120]
[400546525,1767709940137,722.9,0.00032876,120]
[400546526,1767709940388,722.9,0.00032876,120]
[400546527,1767709940630,722.9,0.00032876,120]
[400546528,1767709940885,722.9,0.00032876,120]
[400546529,1767709941512,500.0,0.00032876,120]
[400546530,1767709941768,500.0,0.00032876,120]
[400546531,1767709941997,204.85229278,0.00032876,120]
[400546532,1767709943238,796.87788394,0.00032876,120]
[400546533,1767709944325,570.0,0.00032876,120]
[400546534,1767709945812,581.25556822,0.00032876,120]
[400546535,1767709947548,451.72,0.00032876,120]
[400546536,1767709947956,639.07925093,0.00032876,120]
[400546537,1767709948117,638.21636718,0.00032876,120]
[400546538,1767709948456,500.0,0.00032876,120]
[400546539,1767709948711,639.83239847,0.00032876,120]
[400546540,1767709951992,599.96,0.00032876,120]
[400546541,1767709966729,631.60407898,0.00032876,120]
[400546542,1767709967992,649.63974277,0.00032876,120]
[400546543,1767709968552,571.29573385,0.00032876,120]
[400546544,1767709971541,570.62536058,0.00032876,120]
[400546545,1767709973370,1111.71,0.00032876,120]
[400546546,1767709973588,610.39850146,0.00032876,120]
[400546547,1767709973674,1111.71,0.00032876,120]
[400546548,1767709973850,1111.71,0.00032876,120]
[400546549,1767709974490,1111.71,0.00032876,120]
[400546550,1767709974767,1111.71,0.00032876,120]
[400546551,1767709975023,1111.71,0.00032876,120]
[400546552,1767709975115,592.13047037,0.00032876,120]
[400546553,1767709975286,1111.71,0.00032876,120]
[400546554,1767709975536,1111.71,0.00032876,120]
[400546555,1767709975774,1111.71,0.00032876,120]
[400546556,1767709976016,1111.71,0.00032876,120]
[400546557,1767709976269,1111.71,0.00032876,120]
[400546558,1767709976638,1111.71,0.00032876,120]
[400546559,1767709977217,1111.71,0.00032876,120]
[400546560,1767709977467,1111.71,0.00032876,120]
[400546561,1767709977803,1111.71,0.00032876,120]
[400546562,1767709978046,1111.71,0.00032876,120]
[400546563,1767709978296,1111.71,0.00032876,120]
[400546564,1767709981385,627.70385797,0.00032876,120]
[400546565,1767709981579,638.65896592,0.00032876,120]
[400546566,1767709982086,582.90403102,0.00032876,120]
[400546567,1767709982637,606.51908081,0.00032876,120]
[400546568,1767709984514,603.07533506,0.00032876,120]
[400546569,1767709985040,608.69078766,0.00032876,120]
[400546570,1767709986788,500.0,0.00032876,120]
[400546571,1767709987028,500.0,0.00032876,120]
[400546572,1767709987270,232.1130699,0.00032876,120]
[400546573,1767709988436,500.0,0.00032876,120]
[400546574,1767709988699,500.0,0.00032876,120]
[400546575,1767709988934,158.46735732,0.00032876,120]
[400546576,1767709990370,638.45,0.00032876,120]
[400546577,1767709993281,150.75000031,0.00032876,120]
[400546578,1767709996471,643.23247859,0.00032876,120]
[400546579,1767710003198,628.1335011,0.00032876,120]
[400546580,1767710003617,560.48151255,0.00032876,120]
[400546581,1767710006814,612.0750971,0.00032876,120]
[400546582,1767710007952,595.2078007,0.00032876,120]
[400546583,1767710008886,592.79708575,0.00032876,120]
[400546584,1767710012705,603.04526322,0.00032876,120]
[400546585,1767710013355,500.0,0.00032876,120]
[400546586,1767710013620,500.0,0.00032876,120]
[400546587,1767710013851,243.08504149,0.00032876,120]
[400546588,1767710014367,633.6,0.00032876,120]
[400546589,1767710021000,-8.46668356,0.000207,2]
[400546590,1767710021021,-291.53331644,0.00021999,2]
[400546591,1767710023525,566.07065412,0.00032876,120]
[400546592,1767710031897,636.79213182,0.00032876,120]
[400546593,1767710037701,581.46921158,0.00032876,120]
[400546594,1767710041327,561.20919785,0.00032876,120]
[400546595,1767710048248,588.78071191,0.00032876,120]
[400546596,1767710057146,617.36561616,0.00032876,120]
[400546597,1767710059162,574.047085,0.00032876,120]
[400546598,1767710059250,560.99528881,0.00032876,120]
[400546599,1767710062509,500.0,0.00032876,120]
[400546600,1767710062797,541.27883253,0.00032876,120]
[400546601,1767710062877,500.0,0.00032876,120]
[400546602,1767710063405,500.0,0.00032876,120]
[400546603,1767710063694,277.40181394,0.00032876,120]
[400546604,1767710068490,500.0,0.00032876,120]
[400546605,1767710073877,500.0,0.00032876,120]
[400546606,1767710074124,500.0,0.00032876,120]
[400546607,1767710074373,500.0,0.00032876,120]
[400546608,1767710074605,500.0,0.00032876,120]
[400546609,1767710074687,500.0,0.00032876,120]
[400546610,1767710074840,500.0,0.00032876,120]
[400546611,1767710075064,500.0,0.00032876,120]
[400546612,1767710075294,500.0,0.00032876,120]
[400546613,1767710075534,500.0,0.00032876,120]
[400546614,1767710075787,500.0,0.00032876,120]
[400546615,1767710076019,500.0,0.00032876,120]
[400546616,1767710076269,500.0,0.00032876,120]
[400546617,1767710076516,500.0,0.00032876,120]
[400546618,1767710076760,500.0,0.00032876,120]
[400546619,1767710077019,500.0,0.00032876,120]
[400546620,1767710077268,534.37992228,0.00032876,120]
[400546621,1767710077750,500.0,0.00032876,120]
[400546622,1767710079915,500.0,0.00032876,120]
[400546623,1767710080242,500.0,0.00032876,120]
[400546624,1767710080463,500.0,0.00032876,120]
[400546625,1767710080720,623.61722547,0.00032876,120]
[400546626,1767710084045,500.0,0.00032876,120]
[400546627,1767710084313,500.0,0.00032876,120]
[400546628,1767710084542,500.0,0.00032876,120]
[400546629,1767710084802,500.0,0.00032876,120]
[400546630,1767710085052,500.0,0.00032876,120]
[400546631,1767710085304,628.17336109,0.00032876,120]
[400546632,1767710089243,500.0,0.00032876,120]
[400546633,1767710089481,500.0,0.00032876,120]
[400546634,1767710089720,500.0,0.00032876,120]
[400546635,1767710089796,500.0,0.00032876,120]
[400546636,1767710090140,500.0,0.00032876,120]
[400546637,1767710092151,630.93292419,0.00032876,120]
[400546638,1767710094599,546.27940382,0.00032876,120]
[400546639,1767710096497,1133.39,0.00032876,120]
[400546640,1767710096753,500.0,0.00032876,120]
[400546641,1767710096830,1133.39,0.00032876,120]
[400546642,1767710096991,1133.39,0.00032876,120]
[400546643,1767710097069,500.0,0.00032876,120]
[400546644,1767710097230,500.0,0.00032876,120]
[400546645,1767710097310,1133.39,0.00032876,120]
[400546646,1767710097502,1133.39,0.00032876,120]
[400546647,1767710097584,500.0,0.00032876,120]
[400546648,1767710097743,1133.39,0.00032876,120]
[400546649,1767710097922,500.0,0.00032876,120]
[400546650,1767710098002,500.0,0.00032876,120]
[400546651,1767710098108,1133.39,0.00032876,120]
[400546652,1767710098180,500.0,0.00032876,120]
[400546653,1767710098255,500.0,0.00032876,120]
[400546654,1767710098332,1133.39,0.00032876,120]
[400546655,1767710098411,184.11480868,0.00032876,120]
[400546656,1767710098494,500.0,0.00032876,120]
[400546657,1767710098565,1133.39,0.00032876,120]
[400546658,1767710098645,500.0,0.00032876,120]
[400546659,1767710098737,500.0,0.00032876,120]
[400546660,1767710098993,1133.39,0.00032876,120]
[400546661,1767710099183,500.0,0.00032876,120]
[400546662,1767710099259,1133.39,0.00032876,120]
[400546663,1767710099337,559.99641924,0.00032876,120]
[400546664,1767710099453,500.0,0.00032876,120]
[400546665,1767710099535,1133.39,0.00032876,120]
[400546666,1767710099683,500.0,0.00032876,120]
[400546667,1767710099763,1133.39,0.00032876,120]
[400546668,1767710099937,1133.39,0.00032876,120]
[400546669,1767710100212,1133.39,0.00032876,120]
[400546670,1767710100446,1133.39,0.00032876,120]
[400546671,1767710100737,1133.39,0.00032876,120]
[400546672,1767710101718,500.0,0.00032876,120]
[400546673,1767710101975,500.0,0.00032876,120]
[400546674,1767710102218,500.0,0.00032876,120]
[400546675,1767710102482,512.32102495,0.00032876,120]
[400546676,1767710106571,579.66245212,0.00032876,120]
[400546677,1767710107210,500.0,0.00032876,120]
[400546678,1767710107479,543.81802092,0.00032876,120]
[400546679,1767710109821,604.77240666,0.00032876,120]
[400546680,1767710111813,500.0,0.00032876,120]
[400546681,1767710112064,610.80265349,0.00032876,120]
[400546682,1767710112660,537.41437952,0.00032876,120]
[400546683,1767710113507,565.02688998,0.00032876,120]
[400546684,1767710114488,582.54255165,0.00032876,120]
[400546685,1767710118563,629.05306455,0.00032876,120]
[400546686,1767710134050,500.0,0.00032876,120]
[400546687,1767710134318,500.0,0.00032876,120]
[400546688,1767710136238,500.0,0.00032876,120]
[400546689,1767710136473,500.0,0.00032876,120]
[400546690,1767710136722,614.40561028,0.00032876,120]
[400546691,1767710143139,500.0,0.00032876,120]
[400546692,1767710144957,500.0,0.00032876,120]
[400546693,1767710145211,500.0,0.00032876,120]
[400546694,1767710145464,500.0,0.00032876,120]
[400546695,1767710145546,500.0,0.00032876,120]
[400546696,1767710145718,500.0,0.00032876,120]
[400546697,1767710145972,500.0,0.00032876,120]
[400546698,1767710146080,614.22316948,0.00032876,120]
[400546699,1767710146221,500.0,0.00032876,120]
[400546700,1767710146473,500.0,0.00032876,120]
[400546701,1767710146727,500.0,0.00032876,120]
[400546702,1767710146966,500.0,0.00032876,120]
[400546703,1767710147241,500.0,0.00032876,120]
[400546704,1767710147474,528.60412689,0.00032876,120]
[400546705,1767710147563,500.0,0.00032876,120]
[400546706,1767710147736,515.40982806,0.00032876,120]
[400546707,1767710151000,500.0,0.00032876,120]
[400546708,1767710153573,642.28328828,0.00032876,120]
[400546709,1767710155148,500.0,0.00032876,120]
[400546710,1767710155395,500.0,0.00032876,120]
[400546711,1767710155640,500.0,0.00032876,120]
[400546712,1767710159608,840.56,0.00032876,120]
[400546713,1767710159775,840.56,0.00032876,120]
[400546714,1767710160031,840.56,0.00032876,120]
[400546715,1767710160461,840.56,0.00032876,120]
[400546716,1767710160707,840.56,0.00032876,120]
[400546717,1767710160939,840.56,0.00032876,120]
[400546718,1767710161219,840.56,0.00032876,120]
[400546719,1767710161483,840.56,0.00032876,120]
[400546720,1767710161720,840.56,0.00032876,120]
[400546721,1767710161968,840.56,0.00032876,120]
[400546722,1767710162054,564.91960378,0.00032876,120]
[400546723,1767710162208,840.56,0.00032876,120]
[400546724,1767710162456,840.56,0.00032876,120]
[400546725,1767710162694,840.56,0.00032876,120]
[400546726,1767710162950,840.56,0.00032876,120]
[400546727,1767710163197,840.56,0.00032876,120]
[400546728,1767710163467,840.56,0.00032876,120]
[400546729,1767710163720,840.56,0.00032876,120]
[400546730,1767710164055,500.0,0.00032876,120]
[400546731,1767710164300,500.0,0.00032876,120]
[400546732,1767710164536,500.0,0.00032876,120]
[400546733,1767710164781,500.0,0.00032876,120]
[400546734,1767710164978,500.0,0.00032876,120]
[400546735,1767710165072,500.0,0.00032876,120]
[400546736,1767710165306,500.0,0.00032876,120]
[400546737,1767710165574,500.0,0.00032876,120]
[400546738,1767710165805,500.0,0.00032876,120]
[400546739,1767710166048,635.66322334,0.00032876,120]
[400546740,1767710168334,500.0,0.00032876,120]
[400546741,1767710168576,500.0,0.00032876,120]
[400546742,1767710168835,500.0,0.00032876,120]
[400546743,1767710169064,500.0,0.00032876,120]
[400546744,1767710169310,500.0,0.00032876,120]
[400546745,1767710169596,500.0,0.00032876,120]
[400546746,1767710169830,500.0,0.00032876,120]
[400546747,1767710170073,500.0,0.00032876,120]
[400546748,1767710170332,500.0,0.00032876,120]
[400546749,1767710171688,162.48473308,0.00032876,120]
[400546750,1767710175700,548.7381115,0.00032876,120]
[400546751,1767710177598,500.0,0.00032876,120]
[400546752,1767710177836,500.0,0.00032876,120]
[400546753,1767710178075,500.0,0.00032876,120]
[400546754,1767710178357,500.0,0.00032876,120]
[400546755,1767710178606,500.0,0.00032876,120]
[400546756,1767710178858,500.0,0.00032876,120]
[400546757,1767710179154,573.14078293,0.00032876,120]
[400546758,1767710179248,535.82459394,0.00032876,120]
[400546759,1767710179560,500.0,0.00032876,120]
[400546760,1767710181286,500.0,0.00032876,120]
[400546761,1767710181541,500.0,0.00032876,120]
[400546762,1767710181790,500.0,0.00032876,120]
[400546763,1767710182018,500.0,0.00032876,120]
[400546764,1767710182238,500.0,0.00032876,120]
[400546765,1767710182324,500.0,0.00032876,120]
[400546766,1767710182572,500.0,0.00032876,120]
[400546767,1767710182658,500.0,0.00032876,120]
[400546768,1767710182819,500.0,0.00032876,120]
[400546769,1767710182903,500.0,0.00032876,120]
[400546770,1767710183073,500.0,0.00032876,120]
[400546771,1767710183160,500.0,0.00032876,120]
[400546772,1767710183335,500.0,0.00032876,120]
[400546773,1767710183422,541.65153869,0.00032876,120]
[400546774,1767710183599,500.0,0.00032876,120]
[400546775,1767710183840,500.0,0.00032876,120]
[400546776,1767710184072,500.0,0.00032876,120]
[400546777,1767710184315,500.0,0.00032876,120]
[400546778,1767710184587,500.0,0.00032876,120]
[400546779,1767710184831,500.0,0.00032876,120]
[400546780,1767710185079,500.0,0.00032876,120]
[400546781,1767710185328,500.0,0.00032876,120]
[400546782,1767710185593,500.0,0.00032876,120]
[400546783,1767710185924,647.13166362,0.00032876,120]
[400546784,1767710188986,500.0,0.00032876,120]
[400546785,1767710189245,500.0,0.00032876,120]
[400546786,1767710189487,500.0,0.00032876,120]
[400546787,1767710189724,500.0,0.00032876,120]
[400546788,1767710189965,500.0,0.00032876,120]
[400546789,1767710190196,500.0,0.00032876,120]
[400546790,1767710190429,500.0,0.00032876,120]
[400546791,1767710190677,625.05902154,0.00032876,120]
[400546792,1767710191244,600.04973965,0.00032876,120]
[400546793,1767710195449,500.0,0.00032876,120]
[400546794,1767710195679,500.0,0.00032876,120]
[400546795,1767710195899,512.07031436,0.00032876,120]
[400546796,1767710195986,500.0,0.00032876,120]
[400546797,1767710196175,500.0,0.00032876,120]
[400546798,1767710196406,500.0,0.00032876,120]
[400546799,1767710196632,500.0,0.00032876,120]
[400546800,1767710196915,500.0,0.00032876,120]
[400546801,1767710197176,500.0,0.00032876,120]
[400546802,1767710197415,500.0,0.00032876,120]
[400546803,1767710197661,500.0,0.00032876,120]
[400546804,1767710197892,500.0,0.00032876,120]
[400546805,1767710198134,500.0,0.00032876,120]
[400546806,1767710199044,500.0,0.00032876,120]
[400546807,1767710199288,500.0,0.00032876,120]
[400546808,1767710199595,500.0,0.00032876,120]
[400546809,1767710199775,500.0,0.00032876,120]
[400546810,1767710200010,500.0,0.00032876,120]
[400546811,1767710203512,593.09120359,0.00032876,120]
[400546812,1767710205307,395.85,0.00032876,120]
[400546813,1767710206332,500.0,0.00032876,120]
[400546814,1767710206617,500.0,0.00032876,120]
[400546815,1767710207159,500.0,0.00032876,120]
[400546816,1767710207445,500.0,0.00032876,120]
[400546817,1767710207692,599.01196328,0.00032876,120]
[400546818,1767710210422,626.70101413,0.00032876,120]
[400546819,1767710217094,631.76,0.00032876,120]
[400546820,1767710218815,2522.46,0.00032876,120]
[400546821,1767710219054,2522.46,0.00032876,120]
[400546822,1767710219312,2522.46,0.00032876,120]
[400546823,1767710219556,2522.46,0.00032876,120]
[400546824,1767710219792,2522.46,0.00032876,120]
[400546825,1767710220040,2522.46,0.00032876,120]
[400546826,1767710220291,2522.46,0.00032876,120]
[400546827,1767710220524,2522.46,0.00032876,120]
[400546828,1767710220874,2522.46,0.00032876,120]
[400546829,1767710221109,2522.46,0.00032876,120]
[400546830,1767710221367,2522.46,0.00032876,120]
[400546831,1767710221595,2522.46,0.00032876,120]
[400546832,1767710221852,2522.46,0.00032876,120]
[400546833,1767710222044,616.72968721,0.00032876,120]
[400546834,1767710222130,2522.46,0.00032876,120]
[400546835,1767710222353,2522.46,0.00032876,120]
[400546836,1767710222597,2522.46,0.00032876,120]
[400546846,1767710222833,2522.46,0.00032876,120]
[400546852,1767710224150,614.23563416,0.00032876,120]
[400546853,1767710226343,564.67393233,0.00032876,120]
[400546854,1767710233555,500.0,0.00032876,120]
[400546855,1767710233805,500.0,0.00032876,120]
[400546856,1767710234047,500.0,0.00032876,120]
[400546857,1767710234289,524.116376,0.00032876,120]
[400546858,1767710236207,1166.36,0.00032876,120]
[400546859,1767710236532,1166.36,0.00032876,120]
[400546860,1767710236737,1166.36,0.00032876,120]
[400546861,1767710237005,1166.36,0.00032876,120]
[400546862,1767710237091,629.07690899,0.00032876,120]
[400546863,1767710237243,1166.36,0.00032876,120]
[400546864,1767710237476,1166.36,0.00032876,120]
[400546865,1767710237701,1166.36,0.00032876,120]
[400546866,1767710238052,1166.36,0.00032876,120]
[400546867,1767710238293,1166.36,0.00032876,120]
[400546868,1767710238597,1166.36,0.00032876,120]